bitfinex-derivatives/quotes_BNBF0:USTF0_20250425
["timestamp","ask_amount","ask_price","bid_price","bid_amount"]
[1745579279993,1.37722657,606.95,606.01,0.30278841]
[1745579280193,2.51025323,606.94,606.01,0.30278841]
[1745579280397,1.37722657,606.93,606.01,0.30278841]
[1745579280598,1.37722657,606.92,606.01,0.30278841]
[1745579280799,1.37722657,606.91,606.01,0.30278841]
[1745579280997,1.37722657,606.9,606.01,0.30278841]
[1745579281198,1.37722657,606.89,606.01,0.30278841]
[1745579281400,1.37722657,606.88,606.01,0.30278841]
[1745579281596,1.37722657,606.87,606.01,0.30278841]
[1745579281819,2.51025323,606.86,606.01,0.30278841]
[1745579282001,2.51025323,606.85,606.01,0.30278841]
[1745579282201,1.37722657,606.84,606.01,0.30278841]
[1745579282401,1.37722657,606.83,606.01,0.30278841]
[1745579282703,2.51025323,606.82,606.0,1.397]
[1745579282903,1.37722657,606.81,606.01,0.3027877]
[1745579283105,1.37722657,606.8,606.01,0.3027877]
[1745579283303,1.37722657,606.79,606.01,0.3027877]
[1745579283503,1.37722657,606.78,606.01,0.3027877]
[1745579283705,2.51025323,606.77,606.01,0.3027877]
[1745579284005,1.13302666,606.77,606.01,0.3027877]
[1745579284206,1.37653745,606.76,606.01,0.3027877]
[1745579284405,1.13302666,606.77,606.01,0.3027877]
[1745579284605,1.13302666,606.75,606.01,0.3027877]
[1745579284806,1.13302666,606.76,606.01,0.3027877]
[1745579285003,1.37643116,606.75,606.01,0.3027877]
[1745579285203,1.13302666,606.74,606.01,0.3027877]
[1745579285700,1.13302666,606.74,606.0,1.68387781]
[1745579285907,1.37627927,606.73,606.0,1.68387781]
[1745579286202,2.50930593,606.72,606.0,1.68387781]
[1745579286406,2.50930593,606.71,606.0,1.68387781]
[1745579286702,2.50930593,606.7,606.0,1.68387781]
[1745579286906,1.37617488,606.69,606.0,1.68387781]
[1745579287105,1.37617488,606.68,606.0,1.68387781]
[1745579287302,1.37617488,606.67,606.0,1.397]
[1745579287607,1.37617488,606.67,606.0,1.68392394]
[1745579287807,1.13302666,606.66,606.0,1.68392394]
[1745579288503,1.13302666,606.65,606.0,1.68392394]
[1745579288705,1.13387873,606.64,606.0,1.68392394]
[1745579289510,1.13387873,606.63,606.0,1.68392394]
[1745579290107,1.13387873,606.62,606.0,1.68392394]
[1745579290411,1.13387873,606.61,606.0,1.68392394]
[1745579290911,1.13387873,606.6,606.0,1.68392394]
[1745579291214,1.13387873,606.59,606.0,1.68392394]
[1745579291510,1.13387873,606.58,606.0,1.68392394]
[1745579292212,1.13387873,606.57,606.0,1.68392394]
[1745579292713,1.13387873,606.56,606.0,1.68392394]
[1745579292912,1.24128218,608.41,606.0,1.68392394]
[1745579293111,1.37760448,608.4,606.0,1.68392394]
[1745579293327,2.51236227,608.39,606.0,1.397]
[1745579293513,1.37760448,608.38,606.0,1.397]
[1745579293811,1.37760448,608.37,606.01,0.30282099]
[1745579294006,1.37760448,608.36,606.01,0.30282099]
[1745579294207,1.37842214,608.35,606.01,0.30282099]
[1745579294413,1.37842214,608.34,606.01,0.30282099]
[1745579294614,1.37842214,608.33,606.01,0.30282099]
[1745579294816,1.37842214,608.32,606.01,0.30282099]
[1745579295115,1.37842214,608.31,606.02,0.30281949]
[1745579295315,1.37842214,608.3,606.03,0.30281949]
[1745579295515,1.37842214,608.29,606.04,0.30281949]
[1745579295710,2.51317993,608.28,606.01,0.30281949]
[1745579295910,1.37842214,608.27,606.02,0.30281949]
[1745579296111,1.37842214,608.26,606.01,0.30281949]
[1745579296314,1.37842214,608.25,606.02,0.30281949]
[1745579296515,2.51317993,608.24,606.03,0.30281949]
[1745579296814,2.51317993,608.23,606.04,0.30281949]
[1745579297115,1.37842214,608.22,606.05,0.30281949]
[1745579297316,2.51317993,608.21,606.01,0.30281949]
[1745579297612,1.37842214,608.2,606.02,0.30281949]
[1745579297814,1.37842214,608.19,606.01,0.30281949]
[1745579298115,2.51317993,608.18,606.01,0.30281949]
[1745579298414,1.37842214,608.17,606.01,0.30281949]
[1745579298618,2.51317993,608.16,606.01,0.30281949]
[1745579298915,1.37842214,608.15,606.01,0.30281949]
[1745579299215,2.51317993,608.14,606.01,0.30281949]
[1745579299410,1.37842214,608.13,606.01,0.30281949]
[1745579299614,1.42148433,608.14,606.01,0.30281949]
[1745579299815,2.5163427,608.13,606.02,0.30280683]
[1745579300015,1.38158491,608.12,606.01,0.30280683]
[1745579300212,1.38158491,608.11,606.02,0.30280683]
[1745579300417,1.38158491,608.1,606.01,0.30280683]
[1745579300613,2.5163427,608.09,606.01,0.30280683]
[1745579300816,1.38158491,608.08,606.01,0.30280683]
[1745579301016,1.38158491,608.07,606.01,0.30280683]
[1745579301214,2.5163427,608.06,606.01,0.30280683]
[1745579301415,1.38158491,608.05,606.01,0.30280683]
[1745579301712,2.5163427,608.04,606.01,0.30280683]
[1745579301917,1.38158491,608.03,606.01,0.30280683]
[1745579302112,1.38158491,608.02,606.01,0.30280683]
[1745579302316,2.5163427,608.01,606.01,0.30280683]
[1745579302514,1.38158491,608.0,606.02,0.30280683]
[1745579302715,1.38158491,608.0,605.98,1.035]
[1745579302716,1.38158491,607.99,606.0,0.28674544]
[1745579303013,2.51717324,607.98,606.01,0.30281607]
[1745579303219,1.38241545,607.97,606.01,0.30281607]
[1745579303522,2.51717324,607.96,606.01,0.30281607]
[1745579303719,2.51717324,607.96,606.02,1.011]
[1745579303720,1.38241545,607.95,606.02,1.011]
[1745579304019,1.38241545,607.94,606.03,0.30281607]
[1745579304218,1.38241545,607.93,606.03,0.30281607]
[1745579304520,1.38241545,607.92,606.04,0.30280942]
[1745579304718,1.38241545,607.91,606.05,0.30280942]
[1745579304915,2.51717324,607.9,606.06,0.30280942]
[1745579305118,1.38241545,607.89,606.07,0.30280942]
[1745579305315,1.38241545,607.88,606.08,0.30280942]
[1745579305620,1.38241545,607.87,606.09,0.30280942]
[1745579305919,2.51717324,607.86,606.03,0.28675489]
[1745579306218,1.38241545,607.85,606.04,0.30279465]
[1745579306419,1.38241545,607.84,606.04,0.30279465]
[1745579306613,1.38241545,607.83,606.04,0.30279465]
[1745579306814,1.38241545,607.82,606.04,0.30279465]
[1745579307015,1.38339713,607.81,606.04,0.30279465]
[1745579307222,1.38339713,607.8,606.04,0.30279465]
[1745579307420,1.38339713,607.79,606.04,0.30279465]
[1745579307620,1.38339713,607.78,606.04,0.30279465]
[1745579307818,1.38339713,607.77,606.04,0.30279465]
[1745579308018,1.38339713,607.76,606.04,0.30279465]
[1745579308214,1.38339713,607.75,606.04,0.30279465]
[1745579308417,1.38339713,607.74,606.04,0.30279465]
[1745579308620,1.38339713,607.73,606.05,0.30279465]
[1745579308816,1.38339713,607.72,606.09,1.04680513]
[1745579309019,1.38339713,607.71,606.09,1.04680513]
[1745579309220,2.51815492,607.7,606.1,0.30279465]
[1745579309420,1.38339713,607.69,606.1,0.30279465]
[1745579309620,1.38339713,607.68,606.1,0.30279465]
[1745579309819,1.38339713,607.67,606.1,0.30279465]
[1745579310018,2.51815492,607.66,606.1,0.30279465]
[1745579310220,1.38339713,607.65,606.1,0.30279465]
[1745579310418,1.38339713,607.64,606.1,0.30279465]
[1745579310621,1.38391361,607.63,606.1,0.30279465]
[1745579310822,2.5186714,607.62,606.1,0.30279465]
[1745579311021,1.38391361,607.61,606.1,0.30279465]
[1745579311219,1.38391361,607.6,606.1,0.30279465]
[1745579311419,2.5186714,607.59,606.1,0.30279465]
[1745579311623,1.38391361,607.58,606.1,0.30279465]
[1745579311822,1.38391361,607.57,606.1,0.30279465]
[1745579312119,1.38391361,607.56,606.1,0.30279465]
[1745579312319,1.38391361,607.55,606.11,0.30279273]
[1745579312524,2.52364579,607.54,606.08,0.30279273]
[1745579312824,1.38395437,607.53,606.09,0.30279273]
[1745579313022,1.38395437,607.52,606.1,0.30279273]
[1745579313228,2.52364579,607.51,606.08,0.30279273]
[1745579313522,1.38395437,607.5,606.07,1.04680513]
[1745579313729,2.52364579,607.49,606.09,1.012]
[1745579313928,1.38395437,607.48,606.09,1.012]
[1745579314128,2.52364579,607.47,606.1,0.30272103]
[1745579314328,1.38395437,607.46,606.1,0.30272103]
[1745579314625,1.13969142,607.47,606.1,0.30272103]
[1745579314626,1.38395437,607.45,606.1,0.30272103]
[1745579314822,2.52364579,607.44,606.1,0.30272103]
[1745579315028,1.38395437,607.43,606.1,0.30272103]
[1745579315328,1.38395437,607.43,606.09,1.012]
[1745579315329,2.52364579,607.42,606.09,1.012]
[1745579315546,1.38395437,607.41,606.22,1.04680513]
[1745579315723,1.38395437,607.4,606.22,1.04680513]
[1745579315922,2.52364579,607.39,606.22,1.04680513]
[1745579316125,1.38395437,607.38,606.22,1.04680513]
[1745579316427,1.38395437,607.37,606.23,0.3027126]
[1745579316626,2.52364579,607.36,606.23,0.3027126]
[1745579316822,1.38395437,607.35,606.23,0.3027126]
[1745579317022,2.52364579,607.34,606.24,0.30269165]
[1745579317226,1.38395437,607.33,606.25,0.30269165]
[1745579317426,2.52364579,607.32,606.23,0.30269165]
[1745579317625,1.38395437,607.31,606.24,0.30269165]
[1745579317827,2.52364579,607.3,606.23,0.30269165]
[1745579318028,1.38287729,607.29,606.23,0.30269165]
[1745579318228,1.38287729,607.28,606.2,0.30269165]
[1745579318429,1.38287729,607.27,606.21,0.30269165]
[1745579318623,1.38287729,607.26,606.2,0.30269165]
[1745579318827,2.52256871,607.25,606.21,0.30269165]
[1745579319023,2.52256871,607.24,606.2,0.30269165]
[1745579319225,1.38287729,607.23,606.21,0.30269165]
[1745579319424,2.52256871,607.22,606.2,0.30269165]
[1745579319732,1.38287729,607.21,606.21,0.30269165]
[1745579319927,1.38287729,607.2,606.2,0.30269165]
[1745579320133,2.52256871,607.19,606.21,0.30269087]
[1745579320333,1.38287729,607.18,606.22,0.30269087]
[1745579320536,2.52256871,607.17,606.23,0.30269087]
[1745579320730,1.38287729,607.16,606.2,0.30269087]
[1745579320929,1.38287729,607.15,606.21,0.30269087]
[1745579321132,1.38287729,607.14,606.2,0.30269087]
[1745579321333,1.38218577,607.13,606.21,0.30269087]
[1745579321536,1.38218577,607.12,606.17,1.04680513]
[1745579321857,1.38218577,607.12,606.18,0.30268798]
[1745579322330,1.38218577,607.11,606.18,0.30268798]
[1745579322737,1.38228981,607.1,606.18,0.30268798]
[1745579322936,1.38228981,607.09,606.18,0.30268798]
[1745579323537,1.38228981,607.08,606.18,1.71668798]
[1745579323733,1.38228981,607.07,606.19,0.30268798]
[1745579323930,2.52198123,607.06,606.19,0.30268798]
[1745579324131,1.38228981,607.05,606.19,0.30268798]
[1745579324334,2.52198123,607.04,606.2,1.064]
[1745579324531,1.38228981,607.03,606.21,0.30268798]
[1745579324735,1.38228981,607.02,606.22,0.30266599]
[1745579324931,1.38228981,607.01,606.21,0.30266599]
[1745579325138,1.38228981,607.0,606.22,0.30266599]
[1745579325335,2.52198123,606.99,606.21,0.30266599]
[1745579325635,1.38140227,606.98,606.22,0.30266599]
[1745579325836,2.52109369,606.97,606.21,0.30266599]
[1745579326036,1.38140227,606.96,606.22,0.30266599]
[1745579326237,1.38140227,606.95,606.23,0.3026671]
[1745579326532,1.38132074,606.94,606.24,0.3026671]
[1745579326740,1.13969142,606.94,606.21,0.3026671]
[1745579327032,1.13969142,606.93,606.21,0.3026671]
[1745579327634,1.13969142,606.92,606.21,0.3026671]
[1745579327834,1.13969142,606.91,606.22,0.30267615]
[1745579328033,1.13969142,606.91,606.23,0.30267615]
[1745579328234,1.13969142,606.91,606.24,0.30267615]
[1745579328437,1.13969142,606.9,606.25,0.30267615]
[1745579328641,1.13969142,606.89,606.26,0.30267615]
[1745579328838,1.13969142,606.89,606.27,0.30267615]
[1745579329039,1.13969142,606.88,606.21,0.30267615]
[1745579329240,1.13969142,606.88,606.2,1.064]
[1745579329540,1.13969142,606.88,606.21,0.30267615]
[1745579329734,1.13969142,606.87,606.21,0.30267615]
[1745579330040,1.13969142,606.86,606.21,0.30267615]
[1745579330541,1.13969142,606.85,606.21,0.30267615]
[1745579331242,1.24128218,608.84,606.21,0.30267615]
[1745579331437,2.51745499,608.83,606.21,0.30267615]
[1745579331636,1.38065351,608.82,606.21,0.30267615]
[1745579331840,1.24128218,608.8,606.21,0.30267615]
[1745579332036,1.38065351,608.79,606.21,0.30267615]
[1745579332237,2.51745499,608.78,606.21,0.30267615]
[1745579332445,1.38065351,608.77,606.21,0.30267615]
[1745579332743,2.51745499,608.76,606.21,0.30267615]
[1745579332940,1.38065351,608.75,606.21,0.30267615]
[1745579333144,1.38065351,608.74,606.21,0.30267615]
[1745579333345,1.38065351,608.73,606.21,0.30267615]
[1745579333547,2.51745499,608.72,606.21,0.30267615]
[1745579333750,1.38065351,608.71,606.21,0.30267615]
[1745579333945,1.38065351,608.7,606.21,0.30267615]
[1745579334145,2.51745499,608.69,606.21,0.30267615]
[1745579334349,1.38065351,608.68,606.21,0.30267615]
[1745579334549,2.51745499,608.67,606.21,0.30267615]
[1745579334848,1.38065351,608.66,606.21,0.30267615]
[1745579335048,1.38065351,608.65,606.21,0.30267615]
[1745579335248,2.51745499,608.64,606.21,0.30267615]
[1745579335446,1.38065351,608.63,606.21,0.30267615]
[1745579335650,2.51745499,608.62,606.21,0.30267615]
[1745579335850,1.38065351,608.61,606.21,0.30267615]
[1745579336047,1.38065351,608.6,606.21,0.30267615]
[1745579336251,1.38065351,608.59,606.21,0.30267615]
[1745579336445,2.51745499,608.58,606.21,0.30267615]
[1745579336757,1.38029067,608.57,606.21,0.30267615]
[1745579336948,1.38029067,608.56,606.21,0.30267615]
[1745579337151,2.51709215,608.55,606.21,0.30267615]
[1745579337452,2.51709215,608.54,606.21,0.30267615]
[1745579337649,1.38029067,608.53,606.21,0.30267615]
[1745579337851,1.38029067,608.52,606.21,0.30267615]
[1745579338047,2.51709215,608.51,606.21,0.30267615]
[1745579338254,1.38029067,608.5,606.21,0.30267615]
[1745579338453,1.38006154,608.49,606.21,0.30267615]
[1745579338653,1.38006154,608.48,606.22,0.30265579]
[1745579338854,1.38006154,608.47,606.23,0.30265579]
[1745579339051,1.38006154,608.46,606.24,0.30265579]
[1745579339255,1.38006154,608.45,606.25,0.30265579]
[1745579339455,2.51686302,608.44,606.26,0.30265579]
[1745579339656,1.38006154,608.43,606.27,0.30265579]
[1745579339968,2.51686302,608.42,606.28,0.30265579]
[1745579340155,1.38006154,608.41,606.23,0.30265579]
[1745579340456,1.38006154,608.4,606.23,0.30265579]
[1745579340653,1.38006154,608.39,606.23,0.30265579]
[1745579340850,1.38006154,608.38,606.23,0.30265579]
[1745579341055,1.38006154,608.37,606.23,0.30265579]
[1745579341251,1.38006154,608.36,606.24,0.30265778]
[1745579341454,1.38006154,608.35,606.25,0.30265778]
[1745579341754,2.51686302,608.34,606.26,0.30265778]
[1745579341953,2.51686302,608.33,606.24,0.30265778]
[1745579342158,1.38006154,608.32,606.25,0.30265778]
[1745579342358,1.38006154,608.31,606.24,0.30265778]
[1745579342558,2.51686302,608.3,606.25,0.30265778]
[1745579342858,1.38006154,608.29,606.26,0.30265767]
[1745579343057,1.38006154,608.29,606.23,0.28660729]
[1745579343058,1.38006154,608.28,606.24,0.30265767]
[1745579343255,2.5164787,608.27,606.25,0.30265767]
[1745579343458,1.37967722,608.26,606.26,0.30265767]
[1745579343663,2.5164787,608.25,606.24,0.30265767]
[1745579343859,1.37967722,608.24,606.25,0.30265767]
[1745579344059,1.37967722,608.23,606.24,0.30265767]
[1745579344272,2.5164787,608.22,606.25,0.30265494]
[1745579344460,1.37967722,608.21,606.25,2.398]
[1745579344662,2.5164787,608.2,606.26,0.30265494]
[1745579344856,1.37967722,608.19,606.26,0.30265494]
[1745579345055,1.37967722,608.18,606.26,0.30265494]
[1745579345259,2.5164787,608.17,606.26,0.30265494]
[1745579345456,1.37967722,608.16,606.26,0.30265494]
[1745579345657,1.13680148,608.17,606.26,0.30265494]
[1745579345658,1.37967722,608.15,606.26,0.30265494]
[1745579345856,1.37967722,608.14,606.26,0.30265494]
[1745579346061,1.37967722,608.13,606.26,0.30265494]
[1745579346360,2.5164787,608.12,606.26,0.30265494]
[1745579346561,1.37967722,608.11,606.26,0.30265494]
[1745579346861,2.5164787,608.1,606.26,0.30265494]
[1745579347057,1.37967722,608.09,606.27,1.199]
[1745579347262,1.37967722,608.08,606.28,0.30265494]
[1745579347558,1.37967722,608.07,606.28,0.30265494]
[1745579347759,2.5164787,608.06,606.28,0.30265494]
[1745579347959,1.37967722,608.05,606.28,1.32065494]
[1745579348163,1.37967722,608.04,606.29,0.30265494]
[1745579348364,1.37967722,608.03,606.29,0.30265494]
[1745579348564,1.37967722,608.02,606.29,0.30265494]
[1745579348764,1.13680148,608.03,606.29,0.30265494]
[1745579348765,1.37967722,608.01,606.29,0.30265494]
[1745579348960,1.37967722,608.0,606.3,0.3026471]
[1745579349266,1.37967722,607.99,606.31,0.3026471]
[1745579349464,1.37967722,607.98,606.29,0.3026471]
[1745579349663,1.37967722,607.97,606.3,0.3026471]
[1745579349964,1.37967722,607.96,606.31,0.3026471]
[1745579350165,1.37967722,607.95,606.29,0.3026471]
[1745579350367,2.5164787,607.94,606.28,1.018]
[1745579350560,1.37967722,607.93,606.29,0.3026519]
[1745579350765,1.37967722,607.92,606.29,0.3026519]
[1745579350961,1.37967722,607.91,606.29,0.3026519]
[1745579351162,1.37967722,607.9,606.29,0.3026519]
[1745579351362,2.5164787,607.89,606.29,0.3026519]
[1745579351565,1.37967722,607.88,606.29,0.3026519]
[1745579351766,1.37967722,607.87,606.29,0.3026519]
[1745579351966,1.13680148,607.89,606.29,0.3026519]
[1745579351967,2.5164787,607.86,606.29,0.3026519]
[1745579352268,1.37984553,607.85,606.29,0.3026519]
[1745579352465,1.37984553,607.84,606.29,0.3026519]
[1745579352680,1.37984553,607.83,606.29,0.3026519]
[1745579352865,2.51664701,607.82,606.29,0.3026519]
[1745579353166,1.37984553,607.81,606.29,0.3026519]
[1745579353364,2.51664701,607.8,606.29,0.3026519]
[1745579353570,1.37984553,607.79,606.29,0.3026519]
[1745579353765,1.37984553,607.78,606.29,0.3026519]
[1745579353963,2.51664701,607.77,606.29,0.3026519]
[1745579354167,1.38014176,607.76,606.29,0.3026519]
[1745579354371,1.38014176,607.75,606.29,0.3026519]
[1745579354569,1.38014176,607.74,606.29,0.3026519]
[1745579354782,1.38014176,607.73,606.29,0.3026519]
[1745579354964,1.38014176,607.72,606.29,0.3026519]
[1745579355164,1.38014176,607.71,606.29,0.3026519]
[1745579355370,2.51694324,607.7,606.29,0.3026519]
[1745579355571,1.38014176,607.69,606.29,0.3026519]
[1745579355866,1.38014176,607.68,606.35,1.04680513]
[1745579356066,2.51694324,607.67,606.36,0.3026519]
[1745579356269,1.38014176,607.66,606.36,0.3026519]
[1745579356468,2.51694324,607.65,606.36,0.3026519]
[1745579356670,1.38014176,607.64,606.35,1.04680513]
[1745579356866,1.38014176,607.63,606.36,0.30265987]
[1745579357169,1.38014176,607.62,606.36,0.30265987]
[1745579357374,2.51694324,607.61,606.36,0.30265987]
[1745579357570,1.38014176,607.6,606.36,0.30265987]
[1745579357765,1.38014176,607.59,606.36,0.30265987]
[1745579357969,2.51694324,607.58,606.36,0.30265987]
[1745579358267,2.51694324,607.57,606.35,1.04680513]
[1745579358469,1.38014176,607.56,606.36,0.30265737]
[1745579358774,1.38014176,607.55,606.36,0.30265737]
[1745579359068,1.38014176,607.54,606.36,0.30265737]
[1745579359271,1.38014176,607.53,606.36,0.30265737]
[1745579359467,1.38014176,607.52,606.36,0.30265737]
[1745579359666,2.51694324,607.51,606.35,1.04680513]
[1745579359865,2.51694324,607.51,606.37,1.04680513]
[1745579359866,1.38014176,607.5,606.37,1.04680513]
[1745579360068,2.51694324,607.49,606.37,1.04680513]
[1745579360268,2.51694324,607.48,606.37,1.04680513]
[1745579360564,1.38014176,607.47,606.38,0.94]
[1745579360765,1.38014176,607.46,606.38,0.94]
[1745579360985,2.51694324,607.45,606.38,0.94]
[1745579361164,1.38014176,607.44,606.38,0.94]
[1745579361368,1.38205565,607.43,606.38,0.94]
[1745579361568,2.51885713,607.42,606.38,0.94]
[1745579361764,1.38205565,607.41,606.38,0.94]
[1745579361966,1.38205565,607.4,606.38,0.94]
[1745579362169,1.38205565,607.39,606.38,0.94]
[1745579362368,1.38205565,607.38,606.38,0.94]
[1745579362569,1.38205565,607.37,606.38,0.94]
[1745579362774,1.38205565,607.36,606.38,0.94]
[1745579362971,2.51885713,607.35,606.38,0.94]
[1745579363168,1.38205565,607.34,606.38,0.94]
[1745579363366,1.38242963,607.33,606.38,0.94]
[1745579363572,1.38242963,607.32,606.38,0.94]
[1745579363871,2.51923111,607.31,606.38,0.94]
[1745579364067,1.38242963,607.3,606.38,0.94]
[1745579364268,1.13680148,607.31,606.38,0.94]
[1745579364269,1.38242963,607.29,606.38,0.94]
[1745579364467,2.51923111,607.28,606.38,0.94]
[1745579364775,2.51923111,607.27,606.38,0.94]
[1745579365072,1.38275415,607.26,606.38,0.94]
[1745579365272,1.38275415,607.25,606.39,0.93]
[1745579365466,2.51955563,607.24,606.39,0.93]
[1745579365669,1.38275415,607.23,606.39,0.93]
[1745579365973,1.38275415,607.22,606.39,0.93]
[1745579366167,1.38275415,607.21,606.39,0.93]
[1745579366372,1.38275415,607.2,606.39,0.93]
[1745579366572,1.38275415,607.19,606.39,0.93]
[1745579366772,1.38275415,607.18,606.39,0.93]
[1745579366973,2.51955563,607.17,606.39,0.93]
[1745579367174,1.38275415,607.16,606.39,0.93]
[1745579367374,1.38275415,607.15,606.39,0.93]
[1745579367676,2.51955563,607.14,606.39,0.93]
[1745579367873,1.38275415,607.13,606.39,0.93]
[1745579368072,1.38275415,607.12,606.39,0.93]
[1745579368374,1.38275415,607.11,606.39,0.93]
[1745579368676,1.38275415,607.1,606.4,1.286]
[1745579368874,1.38275415,607.09,606.4,1.286]
[1745579369071,1.38275415,607.08,606.4,1.286]
[1745579369269,1.38275415,607.07,606.4,1.286]
[1745579369473,2.52190983,607.06,606.4,1.286]
[1745579369673,1.38275415,607.05,606.4,1.286]
[1745579369874,1.38275415,607.04,606.4,1.286]
[1745579370173,1.38275415,607.03,606.4,1.286]
[1745579370374,1.38275415,607.02,606.4,1.286]
[1745579370575,1.38275415,607.01,606.4,1.286]
[1745579370771,1.38275415,607.0,606.4,1.286]
[1745579370970,1.38275415,606.99,606.4,1.286]
[1745579371173,2.52190983,606.98,606.4,1.286]
[1745579371377,1.38275415,606.97,606.4,1.286]
[1745579371575,1.38275415,606.96,606.4,1.286]
[1745579371774,1.38275415,606.95,606.4,1.286]
[1745579372075,2.52190983,606.94,606.4,1.286]
[1745579372270,1.38275415,606.93,606.4,1.286]
[1745579372469,2.52190983,606.92,606.4,1.286]
[1745579372669,1.38275415,606.91,606.4,1.286]
[1745579372875,1.38275415,606.9,606.4,1.286]
[1745579373176,1.38275415,606.89,606.4,1.286]
[1745579373475,1.38275415,606.88,606.4,1.286]
[1745579373678,2.52190983,606.87,606.4,1.286]
[1745579373872,1.38275415,606.86,606.4,1.286]
[1745579374071,1.38275415,606.85,606.4,1.286]
[1745579374278,1.38275415,606.84,606.4,1.286]
[1745579374478,2.52190983,606.83,606.4,1.286]
[1745579374674,1.38275415,606.82,606.4,1.286]
[1745579374877,1.38275415,606.81,606.4,1.286]
[1745579375178,1.38275415,606.8,606.4,1.286]
[1745579375474,2.52190983,606.79,606.4,1.286]
[1745579375682,2.52190983,606.78,606.4,1.286]
[1745579375873,2.52190983,606.77,606.4,1.286]
[1745579376084,1.38275415,606.76,606.4,1.286]
[1745579376281,2.52190983,606.75,606.4,1.286]
[1745579376477,1.38275415,606.74,606.4,1.286]
[1745579376677,1.38275415,606.73,606.4,1.286]
[1745579376876,1.38275415,606.72,606.4,1.286]
[1745579377077,1.38275415,606.71,606.4,1.286]
[1745579377276,1.13915568,606.7,606.4,1.286]
[1745579377979,1.13915568,606.69,606.4,1.286]
[1745579378478,1.13915568,606.68,606.4,1.286]
[1745579378687,1.13915568,606.67,606.4,1.286]
[1745579379184,1.13915568,606.66,606.4,1.286]
[1745579379681,1.13915568,606.65,606.4,1.286]
[1745579379985,1.13915568,606.64,606.4,1.286]
[1745579380184,1.13915568,606.63,606.4,1.286]
[1745579380587,1.13915568,606.62,606.4,1.286]
[1745579380980,1.13915568,606.61,606.4,1.286]
[1745579381987,1.13915568,606.6,606.4,1.286]
[1745579382286,1.24128218,609.15,606.4,1.286]
[1745579382487,1.38159769,609.14,606.4,1.286]
[1745579382682,2.51933377,609.13,606.4,1.286]
[1745579382880,1.38159769,609.12,606.4,1.286]
[1745579383081,1.38159769,609.11,606.4,1.286]
[1745579383280,1.38159769,609.1,606.4,1.286]
[1745579383480,2.51933377,609.09,606.4,1.286]
[1745579383683,2.51933377,609.09,606.4,3.212]
[1745579383684,1.38151265,609.08,606.4,3.212]
[1745579383880,1.38151265,609.07,606.4,3.212]
[1745579384185,2.51924873,609.06,606.4,3.212]
[1745579384385,1.38151265,609.05,606.4,3.212]
[1745579384587,1.38151265,609.04,606.4,3.212]
[1745579384887,2.51924873,609.03,606.4,3.212]
[1745579385085,2.51924873,609.02,606.4,3.212]
[1745579385281,1.38151265,609.01,606.4,3.212]
[1745579385483,1.38151265,609.0,606.4,3.212]
[1745579385688,1.38151265,608.99,606.4,3.212]
[1745579385881,1.38151265,608.98,606.4,3.212]
[1745579386184,1.38151265,608.97,606.4,3.212]
[1745579386382,2.51924873,608.96,606.4,3.212]
[1745579386588,1.38151265,608.95,606.4,3.212]
[1745579386793,1.38151265,608.94,606.4,3.212]
[1745579386986,1.38151265,608.93,606.4,3.212]
[1745579387188,2.51838992,608.92,606.4,3.212]
[1745579387387,1.38065384,608.91,606.4,3.212]
[1745579387584,1.38065384,608.9,606.4,3.212]
[1745579387789,2.51838992,608.89,606.4,3.212]
[1745579388089,2.51838992,608.88,606.4,3.212]
[1745579388289,1.38065384,608.87,606.4,3.212]
[1745579388491,1.38065384,608.86,606.4,3.212]
[1745579388694,2.51838992,608.85,606.4,3.212]
[1745579388888,2.51838992,608.84,606.4,3.212]
[1745579389086,1.38065384,608.83,606.4,3.212]
[1745579389302,1.38065384,608.82,606.4,3.212]
[1745579389491,2.51838992,608.81,606.4,3.212]
[1745579389694,1.38065384,608.8,606.4,3.212]
[1745579389894,1.38065384,608.79,606.4,3.212]
[1745579390187,2.51838992,608.78,606.4,3.212]
[1745579390392,1.38065384,608.77,606.4,3.212]
[1745579390593,1.38065384,608.76,606.4,3.212]
[1745579390787,1.38065384,608.75,606.4,3.212]
[1745579390987,1.24128218,608.7,606.4,3.212]
[1745579391191,1.38065384,608.69,606.4,3.212]
[1745579391388,1.38065384,608.68,606.4,3.212]
[1745579391591,2.51838992,608.67,606.4,3.212]
[1745579391789,2.51838992,608.66,606.4,3.212]
[1745579391987,1.38065384,608.65,606.4,3.212]
[1745579392192,1.38065384,608.64,606.4,3.212]
[1745579392392,2.51838992,608.63,606.4,3.212]
[1745579392588,1.38065384,608.62,606.4,3.212]
[1745579392787,1.37938016,608.61,606.4,3.212]
[1745579392990,2.51711624,608.6,606.4,3.212]
[1745579393193,2.51711624,608.59,606.4,3.212]